[Event "44th Chess Olympiad Open 2022"]
[Site "Chennai"]
[Date "2022.07.29"]
[Round "1.68"]
[White "Amba Oyon Marius Claude"]
[Black "Barrish, Daniel"]
[Result "0-1"]
[WhiteElo "1938"]
[BlackElo "2283"]
[Annotator "ChessBase"]
[PlyCount "91"]
[EventDate "2022.??.??"]
[TimeControl "60"]

1. e4 {[%emt 0:00:12]} c6 {[%emt 0:00:15]} 2. d4 {[%emt 0:01:29]} d5 {[%emt 0:
00:00]} 3. c4 {[%emt 0:01:23]} dxe4 {[%emt 0:00:14]} 4. Nc3 {[%emt 0:01:09]} e5
{[%emt 0:00:29]} 5. d5 {[%emt 0:05:11]} f5 {[%emt 0:01:50]} 6. f3 {[%emt 0:00:
00]} Nf6 {[%emt 0:04:04]} 7. Bg5 {[%emt 0:04:05]} Bb4 {[%emt 0:02:39]} 8. Qb3 {
[%emt 0:05:07]} Qa5 {[%emt 0:12:07]} 9. Bd2 {[%emt 0:08:59]} cxd5 {[%emt 0:00:
00]} 10. cxd5 {[%emt 0:01:48]} e3 {[%emt 0:03:25]} 11. Bxe3 {[%emt 0:01:50]}
Nxd5 {[%emt 0:00:46]} 12. Bd2 {[%emt 0:01:43]} Nxc3 {[%emt 0:00:57]} 13. bxc3 {
[%emt 0:05:03]} Bc5 {[%emt 0:00:40]} 14. Bc4 {[%emt 0:01:43]} Qb6 {[%emt 0:00:
00]} 15. O-O-O {[%emt 0:06:17]} Qxb3 {[%emt 0:05:18]} 16. axb3 {[%emt 0:01:48]}
Nc6 {[%emt 0:02:48]} 17. Nh3 {[%emt 0:00:30]} h6 {[%emt 0:02:11]} 18. Rhe1 {
[%emt 0:01:36]} Ke7 {[%emt 0:01:04]} 19. Nf4 {[%emt 0:19:35]} Kf6 {[%emt 0:00:
00]} 20. Nd5+ {[%emt 0:00:55]} Kg6 {[%emt 0:00:20]} 21. b4 {[%emt 0:00:27]} Bd6
{[%emt 0:03:15]} 22. b5 {[%emt 0:05:11]} Nd8 {[%emt 0:03:24]} 23. Kc2 {[%emt 0:
00:00]} Nf7 {[%emt 0:21:11]} 24. Be3 {[%emt 0:01:09]} Be6 {[%emt 0:07:13]} 25.
Ne7+ {[%emt 0:05:11]} Bxe7 {[%emt 0:01:35]} 26. Bxe6 {[%emt 0:00:19]} Rhd8 {
[%emt 0:07:49]} 27. Rxd8 {[%emt 0:00:24]} Bxd8 {[%emt 0:05:12]} 28. Rd1 {
[%emt 0:00:36]} Bb6 {[%emt 0:05:01]} 29. Bxb6 {[%emt 0:01:34]} axb6 {[%emt 0:
00:00]} 30. Rd7 {[%emt 0:00:08]} Rf8 {[%emt 0:02:15]} 31. Rxb7 {[%emt 0:00:34]}
Nd8 {[%emt 0:00:05]} 32. Rxb6 {[%emt 0:02:37]} Rf6 {[%emt 0:00:03]} 33. Bxf5+ {
[%emt 0:00:21]} Kxf5 {[%emt 0:00:09]} 34. Rxf6+ {[%emt 0:00:16]} gxf6 {[%emt 0:
00:00]} 35. Kd3 {[%emt 0:01:26]} Nb7 {[%emt 0:00:35]} 36. Kc4 {[%emt 0:02:43]}
Ke6 {[%emt 0:00:28]} 37. b6 {[%emt 0:00:41]} Kd6 {[%emt 0:00:38]} 38. Kb5 {
[%emt 0:00:02]} f5 {[%emt 0:01:16]} 39. g4 {[%emt 0:01:36]} e4 {[%emt 0:00:34]}
40. fxe4 {[%emt 0:00:17]} fxe4 {[%emt 0:00:49]} 41. Kc4 {[%emt 0:30:16]} Ke5 {
[%emt 0:30:02]} 42. h4 {[%emt 0:01:10]} Kf4 {[%emt 0:01:40]} 43. Kd4 {[%emt 0:
00:00]} e3 {[%emt 0:00:16]} 44. Kd3 {[%emt 0:00:00]} Kf3 {[%emt 0:00:00]} 45.
g5 {[%emt 0:00:00]} hxg5 {[%emt 0:00:00]} 46. Kd4 {[%emt 0:00:00]} 0-1

[Event "44th Chess Olympiad Open 2022"]
[Site "Chennai"]
[Date "2022.07.29"]
[Round "1.69"]
[White "Markov, Mikhail"]
[Black "Guterres, Cosme"]
[Result "1-0"]
[WhiteElo "2333"]
[BlackElo "1692"]
[Annotator "TA"]
[PlyCount "91"]
[EventDate "2022.??.??"]
[TimeControl "60"]

{[%evp 9,91,12,61,38,67,52,54,25,66,52,149,131,268,261,249,273,272,221,237,132,
139,102,95,90,113,85,125,123,121,118,122,117,138,138,139,120,116,125,131,131,
172,165,165,164,173,177,258,247,244,253,282,251,291,284,394,393,410,330,493,
495,489,497,477,468,393,307,847,793,1118,1112,1485,1482,1938,1944,29988,29989,
29989,29990,29990,29991,29991,29992,29991,29988]} 1. c4 {[%emt 0:00:04]} c6 {
[%emt 0:00:15]} 2. Nf3 {[%emt 0:01:49]} e6 {[%emt 0:00:27]} 3. d4 {[%emt 0:00:
00]} Nf6 {[%emt 0:00:21]} 4. Nbd2 {[%emt 0:00:36] [#]} Be7 $146 {[%emt 0:00:17]
} ({Predecessor:} 4... d5 5. Qc2 Nbd7 6. e4 dxe4 7. Nxe4 Nxe4 8. Qxe4 Bb4+ 9.
Bd2 Bxd2+ 10. Nxd2 c5 11. Nb3 Nf6 12. Qe5 cxd4 13. Rd1 Qe7 14. c5 O-O 15. Bb5
Ng4 16. Qxd4 e5 17. Qc3 Be6 18. O-O Bxb3 19. Qxb3 Qxc5 {0-1 (45) De la Orden
Alcocer,A (1826)-Hernando Pertierra,J (2397) Tres Cantos 2011}) 5. e4 {[%emt 0:
00:00]} d6 {[%emt 0:00:23]} (5... d5 $1 $11) 6. Bd3 {[%emt 0:01:29] E10:
Blumenfeld Gambit.} a6 {[%emt 0:00:30][%cal Ye6e5]} 7. Qe2 {[%emt 0:00:33]} Qc7
{[%emt 0:00:15]} 8. b3 {[%emt 0:01:00] White is slightly better.} Nfd7 {
[%emt 0:00:26]} 9. Bb2 {[%emt 0:00:44]} f6 {[%emt 0:00:22]} (9... c5 $14) 10.
e5 {[%emt 0:02:04]} f5 {[%emt 0:00:19]} (10... dxe5 $16 11. dxe5 f5) 11. exd6
$18 {[%emt 0:00:15]} Qxd6 {[%emt 0:01:03]} 12. c5 {[%emt 0:01:18]} Qc7 {
[%emt 0:00:22]} 13. O-O {[%emt 0:02:07] aiming for Nc4.} (13. Qxe6 Nxc5 14. Qe2
Nxd3+ 15. Qxd3 Be6 $14) 13... Nf6 {[%emt 0:00:34]} 14. Ne5 {[%emt 0:02:22]} ({
White should try} 14. Ng5 $18) 14... O-O $16 {[%emt 0:00:44]} 15. Bc4 {[%emt 0:
00:00] 0x0.0024b2df33d8dp-1022s more active pieces.} Nd5 {[%emt 0:00:28]} 16.
Ndf3 {[%emt 0:01:19]} Bf6 {[%emt 0:00:35]} 17. Rfe1 {[%emt 0:01:31]} Nd7 {
[%emt 0:00:41]} 18. Nd3 {[%emt 0:00:27]} Re8 {[%emt 0:00:36]} 19. Bxd5 {
[%emt 0:01:56]} cxd5 {[%emt 0:00:24]} 20. Bc1 {[%emt 0:00:40][%cal Yb2c1,Yc1f4,
Yf4d6]} Nf8 {[%emt 0:00:28]} 21. Bf4 {[%emt 0:00:31]} Qd8 {[%emt 0:00:00]} 22.
Bd6 {[%emt 0:02:58]} Bd7 {[%emt 0:00:23]} 23. a4 {[%emt 0:00:43]} Ng6 {[%emt 0:
00:17]} 24. b4 {[%emt 0:00:21]} Rc8 {[%emt 0:00:29]} 25. Nde5 {[%emt 0:01:18]}
Bxe5 {[%emt 0:01:44]} 26. dxe5 {[%emt 0:00:02]} Ra8 {[%emt 0:00:00]} 27. g3 {
[%emt 0:02:04] Prevents Nh4.} Bc6 {[%emt 0:00:00]} (27... f4 {was necessary.}
28. Qd2 fxg3) 28. b5 {[%emt 0:00:45]} Bd7 {[%emt 0:00:00]} 29. Nd4 {[%emt 0:00:
15][%cal Yf3d4,Yd4b3,Yb3c5]} f4 {[%emt 0:00:02]} 30. Qg4 {[%emt 0:01:06]} Qa5 {
[%emt 0:01:22][%cal Ra6b5]} 31. c6 {[%emt 0:03:29]} ({Less strong is} 31. gxf4
axb5 32. h4 (32. axb5 Qxa1 33. Rxa1 Rxa1+ 34. Kg2 Rc1 $11) (32. Nxb5 Bxb5 33.
axb5 Qxa1 $11) 32... Qc3 $14) 31... bxc6 {[%emt 0:00:00]} 32. bxc6 {[%emt 0:00:
02]} Bc8 {[%emt 0:00:31]} 33. c7 {[%emt 0:02:23]} Bd7 {[%emt 0:00:20]} (33...
Qc3 {was called for.}) 34. Nb3 $18 {[%emt 0:00:15]} Qc3 {[%emt 0:01:03]} 35.
Nc5 {[%emt 0:00:25]} Bc8 {[%emt 0:00:20]} 36. Rac1 {[%emt 0:03:14][%cal Ya1c1,
Yc1b1,Yb1b8]} Qa5 {[%emt 0:00:56]} 37. Rb1 {[%emt 0:01:42]} Qd2 $2 {[%emt 0:00:
59] [#]} (37... Ra7 38. gxf4 Rxc7) 38. Red1 {[%emt 0:00:36]} Qc2 {[%emt 0:00:
44]} 39. Rb8 {[%emt 0:00:26]} fxg3 {[%emt 0:00:00]} 40. hxg3 {[%emt 0:01:37]}
Bd7 {[%emt 0:01:35]} 41. Nxd7 {[%emt 0:30:19] [#] Intending Qxe6+ and mate.}
Qf5 {[%emt 0:31:42]} 42. Qxf5 {[%emt 0:00:08] White mates.} exf5 {[%emt 0:00:
25]} 43. Rxa8 {[%emt 0:00:03]} Rxa8 {[%emt 0:00:00]} 44. Nb8 {[%emt 0:00:03]}
h6 {[%emt 0:00:33]} 45. c8=Q+ {[%emt 0:00:10]} Kh7 {[%emt 0:00:33]} 46. Qb7 {
[%emt 0:00:02] Weighted Error Value: White=0.13 (very precise) /Black=0.51} 1-0

[Event "44th Chess Olympiad Open 2022"]
[Site "Chennai"]
[Date "2022.07.29"]
[Round "1.69"]
[White "Zhakshylykov, Erzhan"]
[Black "da Conceicao, Marcos"]
[Result "1-0"]
[WhiteElo "2332"]
[BlackElo "1713"]
[Annotator "TA"]
[PlyCount "75"]
[EventDate "2022.??.??"]
[TimeControl "60"]

{[%evp 9,75,76,73,71,70,40,83,74,83,72,118,129,113,97,143,125,156,67,156,141,
190,193,250,240,251,242,254,249,249,224,279,200,200,200,203,143,424,243,323,
320,301,177,257,268,374,339,374,374,374,374,374,374,374,374,374,374,1101,1086,
2152,3502,2016,1510,29982,29983,29981,29982,29982,29979]} 1. d4 {[%emt 0:00:03]
} c6 {[%emt 0:00:23]} 2. c4 {[%emt 0:02:13]} e6 {[%emt 0:01:34]} 3. Nc3 {
[%emt 0:00:54]} Nf6 {[%emt 0:00:57]} 4. e4 {[%emt 0:05:36]} d6 {[%emt 0:02:46]}
5. Nf3 {[%emt 0:02:40]} Be7 {[%emt 0:02:42]} 6. Bd3 {[%emt 0:01:54] E20:
Nimzo-Indian: 4 g3 and 4 f3.} Nbd7 {[%emt 0:02:08]} 7. Bf4 {[%emt 0:06:23]} Nh5
{[%emt 0:03:25] [#]} 8. Be3 $146 {[%emt 0:00:06] White is better.} ({
Predecessor:} 8. Bg3 Nxg3 9. hxg3 e5 10. d5 O-O 11. b4 cxd5 12. Nxd5 Nf6 13.
Nxe7+ Qxe7 14. Nh4 {0-1 (35) Zecevic,I (1788)-Boskovic,M Podgorica 2007}) 8...
Nhf6 {[%emt 0:02:08]} 9. h3 {[%emt 0:03:27][%cal Yh2h3,Yh3h4]} h6 {[%emt 0:00:
52]} ({Black should try} 9... Qc7) 10. e5 $16 {[%emt 0:03:30]} Nh7 {[%emt 0:03:
15]} 11. h4 {[%emt 0:02:45] 0x0.0019881fa8bddp-1022s more active pieces.} d5 {
[%emt 0:01:07]} (11... dxe5 $142 12. dxe5 Nhf8) 12. cxd5 {[%emt 0:00:00]} exd5
{[%emt 0:01:01] [#]} 13. Ne2 {[%emt 0:01:49]} (13. e6 $1 $16 {[%cal Re6d7]})
13... Ndf8 {[%emt 0:01:13]} (13... Nb6 $14) 14. Ng3 {[%emt 0:00:00][%cal Ye2g3,
Yg3h5,Yh5g7]} Be6 {[%emt 0:03:22]} (14... Ng6 $16 {was worth a try.}) 15. Qc2 {
[%emt 0:06:11]} Qd7 {[%emt 0:01:32]} (15... Qa5+ $142 16. Bd2 Bb4) 16. Nh5 $18
{[%emt 0:00:58]} g6 {[%emt 0:00:58]} 17. Ng7+ {[%emt 0:00:19]} Kd8 {[%emt 0:00:
36]} 18. Bxh6 {[%emt 0:08:25]} Kc7 {[%emt 0:00:00]} 19. h5 {[%emt 0:01:51]} Bg4
{[%emt 0:05:03]} 20. Bf4 {[%emt 0:14:30] e6+ is the strong threat.} (20. hxg6
Ng5 $16) 20... Ne6 {[%emt 0:01:34]} 21. Nxe6+ {[%emt 0:00:09]} (21. hxg6 Nxf4
22. gxh7 Nxg2+ 23. Ke2 Nf4+ 24. Ke3 Ng2+ 25. Ke2 Nf4+ 26. Ke3 Ng2+ 27. Ke2 $11)
21... Qxe6 {[%emt 0:00:59]} 22. hxg6 {[%emt 0:02:09]} Bxf3 $4 {[%emt 0:02:13]
A mistake that costs the game.} (22... fxg6 $16 {is a better defense.} 23.
O-O-O (23. Bxg6 Raf8 $16) 23... Rag8) 23. gxf3 {[%emt 0:03:02]} (23. Rxh7 $142
Rxh7 24. gxh7 Bxg2 25. O-O-O) 23... Ng5 {[%emt 0:00:24]} 24. O-O-O {[%emt 0:00:
40]} (24. Ke2 $6 fxg6 25. Bxg5 (25. Bxg6 Nh3 $18) 25... Bxg5 26. Bxg6 Bf4 $18)
24... fxg6 {[%emt 0:00:00]} 25. Bxg6 {[%emt 0:03:31]} (25. Rhg1 $142 Nh3 26.
Rxg6 Qxg6 27. Bxg6 Nxf4 28. Bf5) 25... Rhf8 {[%emt 0:03:12]} (25... Rxh1 $142
26. Rxh1 Rf8) 26. Be3 {[%emt 0:02:12]} Nxf3 {[%emt 0:01:51]} 27. Rh7 {[%emt 0:
00:50] Hoping for Bh5.} Rad8 {[%emt 0:02:20]} 28. Bh5 {[%emt 0:07:07]} ({
Less strong is} 28. Qc5 Rd7 29. Qa5+ (29. Qxa7 Qxg6 30. Rh6 Qf5 $17) 29... Kb8
$16) 28... Kb8 {[%emt 0:00:00]} 29. Qg6 {[%emt 0:01:21]} ({Weaker is} 29. Qb3
Rd7 30. Rh6 Qf5 $18) 29... Qxg6 {[%emt 0:03:26]} 30. Bxg6 {[%emt 0:00:05] This
bishop pair is nice.} Bg5 {[%emt 0:00:26][%cal Yc6c5]} 31. e6 {[%emt 0:00:30]
[%cal Ye5e6,Ye6e7]} Bxe3+ {[%emt 0:02:36]} 32. fxe3 {[%emt 0:00:05] Black must
now prevent e7.} Rfe8 {[%emt 0:01:37]} (32... Ng5 33. e7 Nxh7 34. Bxh7 (34.
exf8=B Nxf8 35. Bd3 Nd7 $11) 34... Kc7 35. exd8=R Kxd8) 33. e7 {[%emt 0:00:22]}
Rc8 {[%emt 0:00:00]} 34. Bxe8 {[%emt 0:00:04]} Rxe8 {[%emt 0:00:02]} 35. Rf1 {
[%emt 0:00:08]} Ng5 {[%emt 0:02:53]} 36. Rf8 {[%emt 0:00:15] White mates.} Nxh7
{[%emt 0:00:00]} 37. Rxe8+ {[%emt 0:00:09]} Kc7 {[%emt 0:00:01] [#]} 38. Rc8+
$3 {[%emt 0:00:00] Weighted Error Value: White=0.25 (precise) /Black=0.55} 1-0

[Event "44th Chess Olympiad Open 2022"]
[Site "Chennai"]
[Date "2022.07.29"]
[Round "1.69"]
[White "de Araujo, Helder"]
[Black "Abdyjapar, Asyl"]
[Result "0-1"]
[WhiteElo "1742"]
[BlackElo "2306"]
[Annotator "TA"]
[PlyCount "108"]
[EventDate "2022.??.??"]
[TimeControl "60"]

{[%evp 20,108,12,16,42,0,0,0,0,-28,-24,-82,-33,-42,-31,-32,-33,-36,-31,-34,-41,
-46,-42,-71,-55,-130,-133,-114,-116,-164,-172,-162,-162,-163,-163,-163,-163,
-166,-152,-160,-167,-167,-41,-157,-165,-167,-167,-164,-152,-195,-193,-180,-146,
-160,-156,-219,-197,-219,-218,-343,-344,-397,-397,-438,-418,-376,-331,-905,
-711,-1093,-1060,-1030,-998,-998,-936,-943,-808,-1500,-1440,-1365,-1194,-2416,
-2506,-29985,-29986,-29986,-29987,-29987,-29988,-29990,-29991]} 1. d4 {[%emt 0:
00:00]} Nf6 {[%emt 0:00:17]} 2. c4 {[%emt 0:00:32]} g6 {[%emt 0:00:03]} 3. Nc3
{[%emt 0:01:25]} Bg7 {[%emt 0:00:43]} 4. Nf3 {[%emt 0:00:31]} d6 {[%emt 0:00:
00]} 5. e4 {[%emt 0:02:57]} O-O {[%emt 0:00:09]} 6. Be2 {[%emt 0:00:33]} e5 {
[%emt 0:00:11]} 7. dxe5 {[%emt 0:05:21]} dxe5 {[%emt 0:00:03]} 8. Qxd8 {
[%emt 0:00:53]} Rxd8 {[%emt 0:00:02]} 9. Bg5 {[%emt 0:02:24]} Rf8 {[%emt 0:00:
00]} 10. O-O {[%emt 0:04:31]} Nc6 {[%emt 0:01:03]} 11. Rfd1 {[%emt 0:02:06]} h6
{[%emt 0:00:21] E97: King's Indian: Classical Main Line (6...e5 7 0-0 Nc6): 8
Be3 and 8 d5 Ne7, not 9 Ne1.} 12. Bxf6 {[%emt 0:06:30]} Bxf6 {[%emt 0:00:04]}
13. Nd5 {[%emt 0:00:53]} Bd8 {[%emt 0:00:10] The position is equal.} 14. b4 {
[%emt 0:04:03] [#]} Bg4 $146 {[%emt 0:01:10]} ({Predecessor:} 14... Re8 15. a4
Nd4 16. Nxd4 exd4 17. Rxd4 c6 18. Nc3 Bf6 19. Rd3 Be6 20. Rf3 Kg7 21. Rd1 g5 {
0-1 (32) Dominguez,F (1786)-Santillan,L (1827) Montevideo 2014}) 15. Rd3 {
[%emt 0:08:44]} (15. Rab1 $11) 15... Bxf3 {[%emt 0:05:15]} ({Better is} 15...
f5 $17 16. h3 fxe4 17. hxg4 exd3 18. Bxd3 Nd4 19. Nxe5 c6) 16. Bxf3 $15 {
[%emt 0:03:27]} a5 {[%emt 0:01:10]} 17. b5 {[%emt 0:01:39]} Nd4 {[%emt 0:00:07]
} 18. Bd1 {[%emt 0:01:38]} c6 {[%emt 0:01:35]} 19. Ne3 {[%emt 0:04:34]} h5 {
[%emt 0:00:45]} 20. bxc6 {[%emt 0:01:16]} bxc6 {[%emt 0:00:02]} 21. Rb1 {
[%emt 0:00:55]} Be7 {[%emt 0:01:04]} 22. Nc2 {[%emt 0:02:04]} (22. c5 $15)
22... Ne6 $1 $17 {[%emt 0:00:33]} 23. Rd7 {[%emt 0:08:36]} Bc5 {[%emt 0:00:35]}
24. Kf1 {[%emt 0:01:00]} (24. Ne1 $17 {is a better defense.}) 24... Rfd8 {
[%emt 0:01:48]} 25. Rxd8+ {[%emt 0:06:48]} Rxd8 {[%emt 0:00:05]} ({Worse is} 
25... Nxd8 26. Ne1 $11) 26. Ke1 {[%emt 0:02:18]} Nf4 {[%emt 0:02:23]} 27. Ne3 {
[%emt 0:09:11]} Bb4+ {[%emt 0:03:20]} 28. Kf1 {[%emt 0:01:44] [#]} Rd2 $1 {
[%emt 0:00:09]} 29. Bb3 {[%emt 0:01:54]} Nd3 {[%emt 0:00:54]} 30. Rd1 {[%emt 0:
00:00]} Rxf2+ {[%emt 0:00:28]} 31. Kg1 {[%emt 0:00:25]} Rd2 {[%emt 0:00:17]
0x0.0023635d607fdp-1022s more active pieces.} 32. Rxd2 {[%emt 0:01:22]} Bxd2
$19 {[%emt 0:00:05] Endgame KBN-KBN} 33. Nd1 {[%emt 0:01:44]} Nc1 {[%emt 0:01:
09]} 34. Ba4 {[%emt 0:01:40]} Nxa2 {[%emt 0:01:24]} 35. Bxc6 {[%emt 0:00:17]}
Nb4 {[%emt 0:00:07]} 36. Bb5 {[%emt 0:00:30]} Nd3 {[%emt 0:00:00]} 37. Kf1 {
[%emt 0:00:38]} (37. Bc6 $17) 37... Nc5 {[%emt 0:00:04] White must now prevent
...a4.} 38. Ke2 {[%emt 0:00:46] [#]} Bb4 {[%emt 0:00:05]} ({Resist} 38... Nxe4
39. Bc6 $16) 39. Nf2 {[%emt 0:01:23]} (39. Nb2 $142) 39... a4 {[%emt 0:02:32]
[%cal Ya5a4,Ya4a3] Strongly threatening ...a3.} 40. Nd3 {[%emt 0:00:02]} Nxd3 {
[%emt 0:00:09]} 41. Kxd3 {[%emt 0:30:16] KB-KB} a3 {[%emt 0:30:00] ( -> ...a2)}
42. Kc2 {[%emt 0:00:43]} Kg7 {[%emt 0:00:14] Hoping for ...h4.} 43. Ba4 $2 {
[%emt 0:01:38]} (43. h4 Be7 44. Kb3) 43... h4 {[%emt 0:00:14]} 44. Bb3 {
[%emt 0:00:22]} f5 {[%emt 0:00:06]} 45. Kd3 {[%emt 0:00:00]} Kf6 {[%emt 0:00:
04]} 46. Ke3 {[%emt 0:00:54]} Bc5+ {[%emt 0:00:30]} 47. Kf3 {[%emt 0:00:50]}
Bg1 {[%emt 0:00:19] Threatens to win with ...Ke7.} 48. h3 {[%emt 0:01:09]} Bd4
{[%emt 0:00:05]} 49. Ba2 {[%emt 0:00:27]} Ke7 {[%emt 0:00:00] And now ...Kd6
would win.} 50. exf5 {[%emt 0:00:56]} gxf5 {[%emt 0:00:04]} 51. g4 {[%emt 0:00:
31]} e4+ {[%emt 0:00:25][%cal Ye5e4,Ye4e3] Black mates.} 52. Kf4 {[%emt 0:05:
44]} e3 {[%emt 0:00:06]} 53. Kf3 {[%emt 0:00:06]} fxg4+ {[%emt 0:00:03]} 54.
hxg4 {[%emt 0:01:09]} h3 {[%emt 0:00:04] Weighted Error Value: White=0.61/
Black=0.03 (flawless)} 0-1

[Event "44th Chess Olympiad Open 2022"]
[Site "Chennai"]
[Date "2022.07.29"]
[Round "1.69"]
[White "dos Reis, Tito"]
[Black "Tologontegin, Semetey"]
[Result "0-1"]
[WhiteElo "1658"]
[BlackElo "2378"]
[Annotator "ChessBase"]
[PlyCount "80"]
[EventDate "2022.??.??"]
[TimeControl "60"]

1. f4 {[%emt 0:00:12]} d5 {[%emt 0:00:05]} 2. Nf3 {[%emt 0:00:24]} Bg4 {
[%emt 0:00:07]} 3. e3 {[%emt 0:00:18]} Nd7 {[%emt 0:00:12]} 4. d4 {[%emt 0:00:
00]} e6 {[%emt 0:00:11]} 5. Bd3 {[%emt 0:00:18]} c5 {[%emt 0:00:43]} 6. c3 {
[%emt 0:00:25]} f5 {[%emt 0:00:21]} 7. Nbd2 {[%emt 0:00:31]} Ngf6 {[%emt 0:00:
00]} 8. O-O {[%emt 0:00:39]} Be7 {[%emt 0:00:46]} 9. Qe1 {[%emt 0:00:54]} c4 {
[%emt 0:03:40]} 10. Bc2 {[%emt 0:01:42]} O-O {[%emt 0:01:28]} 11. Ng5 {[%emt 0:
00:00]} Qb6 {[%emt 0:01:22]} 12. b3 {[%emt 0:03:49]} h6 {[%emt 0:02:58]} 13.
Ngf3 {[%emt 0:01:13]} Bxf3 {[%emt 0:00:34]} 14. Rxf3 {[%emt 0:01:16]} cxb3 {
[%emt 0:00:07]} 15. axb3 {[%emt 0:01:28]} Rfc8 {[%emt 0:22:32]} 16. Bb2 {
[%emt 0:13:26]} Qc6 {[%emt 0:05:41]} 17. Bd3 {[%emt 0:02:35]} Ne4 {[%emt 0:00:
00]} 18. Bxe4 {[%emt 0:04:54]} fxe4 {[%emt 0:00:25]} 19. Rf1 {[%emt 0:01:08]}
b5 {[%emt 0:00:19]} 20. Rc1 {[%emt 0:02:49]} Nb6 {[%emt 0:09:07]} 21. Qe2 {
[%emt 0:01:21]} a5 {[%emt 0:01:20]} 22. f5 {[%emt 0:01:14]} exf5 {[%emt 0:00:
00]} 23. Rxf5 {[%emt 0:00:37]} a4 {[%emt 0:00:11]} 24. b4 {[%emt 0:03:54]} a3 {
[%emt 0:14:26]} 25. Ba1 {[%emt 0:02:04]} Bxb4 {[%emt 0:00:24]} 26. Qg4 {
[%emt 0:10:31]} Rf8 {[%emt 0:03:01]} 27. Re5 {[%emt 0:04:41]} Bd6 {[%emt 0:00:
00]} 28. Re6 {[%emt 0:03:38]} Qd7 {[%emt 0:02:37]} 29. Qg6 {[%emt 0:00:45]}
Rad8 {[%emt 0:01:30]} 30. Rf1 {[%emt 0:02:02]} Nc4 {[%emt 0:02:00]} 31. Nxc4 {
[%emt 0:04:09]} Rxf1+ {[%emt 0:00:27]} 32. Kxf1 {[%emt 0:00:36]} bxc4 {[%emt 0:
00:00]} 33. g3 {[%emt 0:02:56]} Qf7+ {[%emt 0:00:20]} 34. Kg1 {[%emt 0:02:53]}
Qxg6 {[%emt 0:00:06]} 35. Rxg6 {[%emt 0:00:14]} Kf7 {[%emt 0:00:08]} 36. Rg4 {
[%emt 0:00:30]} g5 {[%emt 0:00:07]} 37. h4 {[%emt 0:00:43]} Kg6 {[%emt 0:00:07]
} 38. Kg2 {[%emt 0:05:26]} Kf5 {[%emt 0:00:14]} 39. Kh3 {[%emt 0:00:24]} Rb8 {
[%emt 0:00:11]} 40. hxg5 {[%emt 0:01:59]} hxg5 {[%emt 0:00:04]} 0-1

[Event "44th Chess Olympiad Open 2022"]
[Site "Chennai"]
[Date "2022.07.29"]
[Round "1.70"]
[White "Mendoza, Rodrigo"]
[Black "Masiala Mayuku, Eddy"]
[Result "1-0"]
[WhiteElo "2215"]
[BlackElo "1574"]
[Annotator "NA RC"]
[PlyCount "83"]
[EventDate "2022.??.??"]
[TimeControl "60"]

1. d4 {[%emt 0:00:12]} g6 {[%emt 0:01:45]} 2. e4 {[%emt 0:01:11]} Bg7 {[%emt 0:
00:00]} 3. Nc3 {[%emt 0:01:57]} b6 {[%emt 0:03:04]} 4. Be3 {[%emt 0:01:40]} Bb7
{[%emt 0:05:25]} 5. Qd2 {[%emt 0:00:34]} Nf6 {[%emt 0:03:01]} 6. f3 {[%emt 0:
00:00]} c6 {[%emt 0:00:58]} 7. h4 {[%emt 0:00:38]} a5 {[%emt 0:01:00]} 8. e5 {
[%emt 0:09:13]} Nd5 {[%emt 0:01:12]} 9. Nxd5 {[%emt 0:00:08]} cxd5 {[%emt 0:00:
00]} 10. h5 {[%emt 0:00:20]} Rg8 {[%emt 0:01:08]} 11. Bd3 {[%emt 0:00:47]} Qc7
{[%emt 0:00:57]} 12. Nh3 {[%emt 0:03:22]} Nc6 {[%emt 0:03:14]} 13. Ng5 {
[%emt 0:10:18]} O-O-O {[%emt 0:00:00]} 14. Nxf7 {[%emt 0:00:53]} Rdf8 {[%emt 0:
00:00]} 15. hxg6 {[%emt 0:00:32]} hxg6 {[%emt 0:00:58]} 16. Ng5 {[%emt 0:00:14]
} Rh8 {[%emt 0:01:07]} 17. O-O-O {[%emt 0:00:10]} Nb4 {[%emt 0:00:27]} 18. Bxg6
{[%emt 0:00:38]} Kb8 {[%emt 0:02:41]} 19. a3 {[%emt 0:00:53]} Na6 {[%emt 0:00:
00]} 20. Bd3 {[%emt 0:06:24]} Rc8 {[%emt 0:02:05]} 21. Nf7 {[%emt 0:03:19]}
Rhf8 {[%emt 0:00:42]} 22. e6 {[%emt 0:00:27]} d6 {[%emt 0:00:51]} 23. Rh7 {
[%emt 0:09:48]} Rg8 {[%emt 0:00:40]} 24. Kb1 {[%emt 0:02:40]} Qc6 {[%emt 0:00:
00]} 25. f4 {[%emt 0:01:19]} Qa4 {[%emt 0:00:34]} 26. f5 {[%emt 0:02:56]} Nc7 {
[%emt 0:02:55]} 27. Nh6 {[%emt 0:02:53]} Bxh6 {[%emt 0:01:05]} 28. Bxh6 {
[%emt 0:00:12]} Nb5 {[%emt 0:02:25]} 29. Bxb5 {[%emt 0:00:25]} Qxb5 {[%emt 0:
00:00]} 30. Rxe7 {[%emt 0:00:15]} Ba6 {[%emt 0:01:36]} 31. Bf4 {[%emt 0:00:42]}
Rcd8 {[%emt 0:01:02]} 32. f6 {[%emt 0:00:38]} Qa4 {[%emt 0:03:04]} 33. f7 {
[%emt 0:03:11]} Rh8 {[%emt 0:00:53]} 34. Bxd6+ {[%emt 0:01:40]} Rxd6 {[%emt 0:
00:00]} 35. Qf4 {[%emt 0:00:05]} Rhd8 {[%emt 0:01:40]} 36. Rd7 {[%emt 0:00:50]}
Rc8 {[%emt 0:04:12]} 37. Qxd6+ {[%emt 0:00:09]} Ka8 {[%emt 0:00:32]} 38. b3 {
[%emt 0:00:50]} Qb5 {[%emt 0:01:20]} 39. f8=Q {[%emt 0:00:27]} Qe2 {[%emt 0:00:
00]} 40. Qc6+ {[%emt 0:00:24]} Kb8 {[%emt 0:00:48]} 41. Qfd6+ {[%emt 0:30:09]}
Rc7 {[%emt 0:30:30]} 42. Qdxc7# {[%emt 0:00:13]} 1-0